[Event "Titled Tuesday Blitz July 25 Early 2023"]
[White "SicilianPanzer"]
[Black "Souleidis, Georgios"]
[BlackFideId "4206827"]
[WhiteElo "2326"]
[BlackElo "2542"]
[Result "0-1"]
[Round "3"]
[TimeControl "180+2"]
[Date "2023.07.25"]
[WhiteClock "0:00:01"]
[BlackClock "0:00:19"]
[Board "149"]

1. e4 {[%clk 0:02:59]}  c5 {[%clk 0:02:59]} 2. Nf3 {[%clk 0:02:59]}  e6 {[%clk 0:02:59]} 3. b3 {[%clk 0:02:58]}  a6 {[%clk 0:02:56]} 4. Bb2 {[%clk 0:02:57]}  b6 {[%clk 0:02:53]} 5. Nc3 {[%clk 0:02:54]}  Bb7 {[%clk 0:02:53]} 6. Be2 {[%clk 0:02:48]}  d5 {[%clk 0:02:44]} 7. exd5 {[%clk 0:02:46]}  exd5 {[%clk 0:02:45]} 8. d4 {[%clk 0:02:45]}  Nf6 {[%clk 0:02:45]} 9. O-O {[%clk 0:02:44]}  Be7 {[%clk 0:02:45]} 10. Re1 {[%clk 0:02:43]}  O-O {[%clk 0:02:45]} 11. Ne5 {[%clk 0:02:29]}  Nc6 {[%clk 0:02:40]} 12. Nxc6 {[%clk 0:02:23]}  Bxc6 {[%clk 0:02:41]} 13. Bf3 {[%clk 0:02:22]}  Re8 {[%clk 0:02:28]} 14. dxc5 {[%clk 0:01:59]}  bxc5 {[%clk 0:02:28]} 15. Re5 {[%clk 0:01:58]}  Nd7 {[%clk 0:01:31]} 16. Re2 {[%clk 0:01:52]}  Nb6 {[%clk 0:01:31]} 17. a4 {[%clk 0:01:32]}  a5 {[%clk 0:01:29]} 18. Rd2 {[%clk 0:01:25]}  Bf6 {[%clk 0:01:19]} 19. Rb1 {[%clk 0:00:55]}  Qe7 {[%clk 0:01:13]} 20. g3 {[%clk 0:00:52]}  Rad8 {[%clk 0:00:59]} 21. Kg2 {[%clk 0:00:33]}  Qe6 {[%clk 0:00:50]} 22. Re2 {[%clk 0:00:31]}  Qd6 {[%clk 0:00:48]} 23. Rxe8+ {[%clk 0:00:30]}  Rxe8 {[%clk 0:00:49]} 24. Nb5 {[%clk 0:00:14]}  Bxb5 {[%clk 0:00:42]} 25. axb5 {[%clk 0:00:13]}  Bxb2 {[%clk 0:00:29]} 26. Rxb2 {[%clk 0:00:12]}  a4 {[%clk 0:00:24]} 27. c4 {[%clk 0:00:08]}  axb3 {[%clk 0:00:21]} 28. Bxd5 {[%clk 0:00:04]}  Nxd5 {[%clk 0:00:19]} 29. Qxd5 {[%clk 0:00:04]}  Qxd5+ {[%clk 0:00:18]} 30. cxd5 {[%clk 0:00:04]}  c4 {[%clk 0:00:19]} 31. d6 {[%clk 0:00:02]}  Rd8 {[%clk 0:00:19]} 32. Rd2 {[%clk 0:00:01]}  c3 {[%clk 0:00:19]} 33. Rd3 {[%clk 0:00:01]}  c2 {[%clk 0:00:19]} 34. Rxb3 {[%clk 0:00:01]}  c1=Q {[%clk 0:00:19]} 0-1


[Site "https://www.chess.com"]

[Event "Titled Tuesday Blitz July 25 Early 2023"]
[White "Goffredo_Fofi"]
[Black "Harris, Ian"]
[BlackFideId "2020092"]
[WhiteElo "2541"]
[BlackElo "2316"]
[Result "0-1"]
[Round "3"]
[TimeControl "180+2"]
[Date "2023.07.25"]
[WhiteClock "0:00:06"]
[BlackClock "0:00:10"]
[Board "150"]

1. d4 {[%clk 0:03:00]}  d5 {[%clk 0:02:59]} 2. Nf3 {[%clk 0:02:59]}  Nf6 {[%clk 0:02:57]} 3. Bf4 {[%clk 0:02:59]}  c5 {[%clk 0:02:54]} 4. e3 {[%clk 0:02:59]}  Nc6 {[%clk 0:02:54]} 5. Nbd2 {[%clk 0:03:00]}  Qb6 {[%clk 0:02:54]} 6. dxc5 {[%clk 0:02:59]}  Qxc5 {[%clk 0:02:48]} 7. c4 {[%clk 0:02:46]}  e6 {[%clk 0:02:42]} 8. a3 {[%clk 0:02:40]}  a5 {[%clk 0:02:38]} 9. cxd5 {[%clk 0:02:30]}  Nxd5 {[%clk 0:02:35]} 10. Rc1 {[%clk 0:02:29]}  Qb6 {[%clk 0:02:11]} 11. Nc4 {[%clk 0:02:29]}  Qd8 {[%clk 0:02:11]} 12. Bg3 {[%clk 0:02:28]}  Be7 {[%clk 0:02:06]} 13. e4 {[%clk 0:02:14]}  Nb6 {[%clk 0:01:51]} 14. Nd6+ {[%clk 0:01:48]}  Bxd6 {[%clk 0:01:50]} 15. Bxd6 {[%clk 0:01:49]}  Bd7 {[%clk 0:01:32]} 16. Be2 {[%clk 0:01:26]}  Nc8 {[%clk 0:01:31]} 17. Bc5 {[%clk 0:01:10]}  b6 {[%clk 0:01:28]} 18. Bd6 {[%clk 0:01:10]}  Nxd6 {[%clk 0:01:09]} 19. Qxd6 {[%clk 0:01:11]}  Rc8 {[%clk 0:01:09]} 20. Ba6 {[%clk 0:00:34]}  Qc7 {[%clk 0:00:56]} 21. Qd2 {[%clk 0:00:16]}  Rd8 {[%clk 0:00:56]} 22. Bb5 {[%clk 0:00:14]}  Qb7 {[%clk 0:00:51]} 23. Qd6 {[%clk 0:00:14]}  Nb8 {[%clk 0:00:42]} 24. Bxd7+ {[%clk 0:00:10]}  Rxd7 {[%clk 0:00:43]} 25. Qg3 {[%clk 0:00:09]}  O-O {[%clk 0:00:42]} 26. O-O {[%clk 0:00:09]}  Rfd8 {[%clk 0:00:41]} 27. Ng5 {[%clk 0:00:08]}  h6 {[%clk 0:00:37]} 28. Nh3 {[%clk 0:00:09]}  Nc6 {[%clk 0:00:36]} 29. Nf4 {[%clk 0:00:08]}  Ne7 {[%clk 0:00:35]} 30. Nh5 {[%clk 0:00:08]}  Ng6 {[%clk 0:00:28]} 31. Rce1 {[%clk 0:00:08]}  Rd3 {[%clk 0:00:27]} 32. Qg4 {[%clk 0:00:07]}  Qe7 {[%clk 0:00:24]} 33. f4 {[%clk 0:00:06]}  Qh4 {[%clk 0:00:22]} 34. Qxh4 {[%clk 0:00:04]}  Nxh4 {[%clk 0:00:22]} 35. Re2 {[%clk 0:00:03]}  Rd2 {[%clk 0:00:21]} 36. Rff2 {[%clk 0:00:03]}  Rd1+ {[%clk 0:00:21]} 37. Rf1 {[%clk 0:00:03]}  g6 {[%clk 0:00:19]} 38. Ng3 {[%clk 0:00:02]}  g5 {[%clk 0:00:18]} 39. fxg5 {[%clk 0:00:02]}  hxg5 {[%clk 0:00:19]} 40. Rxd1 {[%clk 0:00:03]}  Rxd1+ {[%clk 0:00:19]} 41. Kf2 {[%clk 0:00:04]}  Ng6 {[%clk 0:00:17]} 42. Nh5 {[%clk 0:00:03]}  Kf8 {[%clk 0:00:12]} 43. g3 {[%clk 0:00:02]}  Ke7 {[%clk 0:00:12]} 44. Kg2 {[%clk 0:00:03]}  Ne5 {[%clk 0:00:12]} 45. Rf2 {[%clk 0:00:02]}  g4 {[%clk 0:00:12]} 46. Re2 {[%clk 0:00:02]}  Nf3 {[%clk 0:00:12]} 47. Nf4 {[%clk 0:00:03]}  Rg1+ {[%clk 0:00:12]} 48. Kf2 {[%clk 0:00:03]}  Rh1 {[%clk 0:00:12]} 49. Ke3 {[%clk 0:00:03]}  Rd1 {[%clk 0:00:07]} 50. Rc2 {[%clk 0:00:03]}  Re1+ {[%clk 0:00:05]} 51. Kf2 {[%clk 0:00:03]}  Rd1 {[%clk 0:00:05]} 52. Ne2 {[%clk 0:00:03]}  Rd7 {[%clk 0:00:04]} 53. Ke3 {[%clk 0:00:03]}  Ne5 {[%clk 0:00:04]} 54. Nf4 {[%clk 0:00:03]}  Rb7 {[%clk 0:00:04]} 55. Rd2 {[%clk 0:00:03]}  b5 {[%clk 0:00:04]} 56. Nd3 {[%clk 0:00:04]}  Nf3 {[%clk 0:00:03]} 57. Rc2 {[%clk 0:00:04]}  b4 {[%clk 0:00:04]} 58. axb4 {[%clk 0:00:04]}  axb4 {[%clk 0:00:05]} 59. Nc5 {[%clk 0:00:04]}  Rb5 {[%clk 0:00:04]} 60. b3 {[%clk 0:00:04]}  Ne5 {[%clk 0:00:04]} 61. Nd3 {[%clk 0:00:04]}  Nxd3 {[%clk 0:00:03]} 62. Kxd3 {[%clk 0:00:05]}  Rb7 {[%clk 0:00:03]} 63. Rc4 {[%clk 0:00:05]}  Kf6 {[%clk 0:00:04]} 64. Kd4 {[%clk 0:00:05]}  Rd7+ {[%clk 0:00:04]} 65. Kc5 {[%clk 0:00:05]}  Ke5 {[%clk 0:00:03]} 66. Kxb4 {[%clk 0:00:05]}  Rd2 {[%clk 0:00:04]} 67. Rc3 {[%clk 0:00:04]}  Rxh2 {[%clk 0:00:04]} 68. Kb5 {[%clk 0:00:04]}  Rb2 {[%clk 0:00:04]} 69. b4 {[%clk 0:00:05]}  Kxe4 {[%clk 0:00:04]} 70. Kc5 {[%clk 0:00:05]}  f5 {[%clk 0:00:05]} 71. b5 {[%clk 0:00:05]}  e5 {[%clk 0:00:05]} 72. Kc6 {[%clk 0:00:05]}  f4 {[%clk 0:00:05]} 73. gxf4 {[%clk 0:00:06]}  exf4 {[%clk 0:00:06]} 74. Rc4+ {[%clk 0:00:06]}  Ke3 {[%clk 0:00:06]} 75. Rc3+ {[%clk 0:00:05]}  Kf2 {[%clk 0:00:07]} 76. Rc4 {[%clk 0:00:05]}  Kg3 {[%clk 0:00:06]} 77. b6 {[%clk 0:00:04]}  f3 {[%clk 0:00:06]} 78. Rc3 {[%clk 0:00:04]}  Rxb6+ {[%clk 0:00:05]} 79. Kxb6 {[%clk 0:00:04]}  Kg2 {[%clk 0:00:06]} 80. Kc5 {[%clk 0:00:04]}  f2 {[%clk 0:00:06]} 81. Rc2 {[%clk 0:00:04]}  g3 {[%clk 0:00:07]} 82. Kd4 {[%clk 0:00:04]}  Kg1 {[%clk 0:00:07]} 83. Rc1+ {[%clk 0:00:04]}  f1=Q {[%clk 0:00:08]} 84. Rxf1+ {[%clk 0:00:05]}  Kxf1 {[%clk 0:00:08]} 85. Ke3 {[%clk 0:00:05]}  g2 {[%clk 0:00:09]} 86. Kf3 {[%clk 0:00:06]}  g1=Q {[%clk 0:00:10]} 0-1


[Site "https://www.chess.com"]

[Event "Titled Tuesday Blitz July 25 Early 2023"]
[White "kiwibobo"]
[Black "Chor, Kevin"]
[BlackFideId "2090740"]
[WhiteElo "2315"]
[BlackElo "2537"]
[Result "1-0"]
[Round "3"]
[TimeControl "180+2"]
[Date "2023.07.25"]
[WhiteClock "0:00:47"]
[BlackClock "0:00:32"]
[Board "151"]

1. e4 {[%clk 0:03:00]}  c5 {[%clk 0:02:56]} 2. Nf3 {[%clk 0:03:00]}  a6 {[%clk 0:02:56]} 3. c4 {[%clk 0:02:57]}  Nc6 {[%clk 0:02:40]} 4. d4 {[%clk 0:02:55]}  cxd4 {[%clk 0:02:41]} 5. Nxd4 {[%clk 0:02:56]}  e6 {[%clk 0:02:34]} 6. Nc3 {[%clk 0:02:54]}  Nf6 {[%clk 0:02:34]} 7. Nc2 {[%clk 0:02:50]}  Bc5 {[%clk 0:02:28]} 8. Be2 {[%clk 0:02:42]}  O-O {[%clk 0:02:28]} 9. O-O {[%clk 0:02:41]}  Qc7 {[%clk 0:02:15]} 10. a3 {[%clk 0:02:33]}  Rd8 {[%clk 0:01:58]} 11. b4 {[%clk 0:02:31]}  Bd6 {[%clk 0:01:58]} 12. f4 {[%clk 0:02:20]}  e5 {[%clk 0:01:46]} 13. Nd5 {[%clk 0:01:49]}  Nxd5 {[%clk 0:01:42]} 14. exd5 {[%clk 0:01:48]}  Nd4 {[%clk 0:01:19]} 15. Nxd4 {[%clk 0:01:30]}  exd4 {[%clk 0:01:20]} 16. Qxd4 {[%clk 0:01:30]}  Be7 {[%clk 0:01:21]} 17. Qe3 {[%clk 0:01:11]}  Bf6 {[%clk 0:01:19]} 18. Rb1 {[%clk 0:01:09]}  d6 {[%clk 0:01:17]} 19. Bb2 {[%clk 0:01:08]}  Bf5 {[%clk 0:01:10]} 20. Bxf6 {[%clk 0:01:06]}  gxf6 {[%clk 0:01:09]} 21. Bd3 {[%clk 0:01:04]}  Bxd3 {[%clk 0:01:00]} 22. Qxd3 {[%clk 0:01:05]}  Rac8 {[%clk 0:01:01]} 23. Rbc1 {[%clk 0:00:58]}  Qb6+ {[%clk 0:00:55]} 24. Kh1 {[%clk 0:00:55]}  Re8 {[%clk 0:00:56]} 25. Rf3 {[%clk 0:00:54]}  Rc7 {[%clk 0:00:35]} 26. Rg3+ {[%clk 0:00:53]}  Kh8 {[%clk 0:00:36]} 27. Rh3 {[%clk 0:00:49]}  Kg8 {[%clk 0:00:32]} 28. Qxh7+ {[%clk 0:00:47]}  Kf8 {[%clk 0:00:32]} 29. Qh8+ {[%clk 0:00:47]}  Ke7 {[%clk 0:00:32]} 30. Re1+ {[%clk 0:00:47]} 1-0


[Site "https://www.chess.com"]

[Event "Titled Tuesday Blitz July 25 Early 2023"]
[White "Santos Flores, Alberto"]
[Black "Huynh, Lam Binh Nguyen"]
[WhiteFideId "3601234"]
[BlackFideId "12401633"]
[WhiteElo "2537"]
[BlackElo "2300"]
[Result "0-1"]
[Round "3"]
[TimeControl "180+2"]
[Date "2023.07.25"]
[WhiteClock "0:00:16"]
[BlackClock "0:00:49"]
[Board "153"]

1. e4 {[%clk 0:03:00]}  e6 {[%clk 0:02:59]} 2. d4 {[%clk 0:03:00]}  d5 {[%clk 0:02:58]} 3. Nc3 {[%clk 0:03:01]}  Bb4 {[%clk 0:02:56]} 4. e5 {[%clk 0:03:01]}  b6 {[%clk 0:02:55]} 5. Qg4 {[%clk 0:02:58]}  Bf8 {[%clk 0:02:54]} 6. Nf3 {[%clk 0:02:48]}  Nc6 {[%clk 0:02:30]} 7. a3 {[%clk 0:02:40]}  a5 {[%clk 0:02:26]} 8. Bb5 {[%clk 0:02:32]}  Bb7 {[%clk 0:02:19]} 9. h4 {[%clk 0:02:24]}  h5 {[%clk 0:02:17]} 10. Qf4 {[%clk 0:02:23]}  Ne7 {[%clk 0:02:15]} 11. Be3 {[%clk 0:02:15]}  Qd7 {[%clk 0:02:04]} 12. O-O-O {[%clk 0:02:06]}  g6 {[%clk 0:02:01]} 13. Ng5 {[%clk 0:02:05]}  Nf5 {[%clk 0:02:00]} 14. Bd3 {[%clk 0:01:58]}  O-O-O {[%clk 0:01:57]} 15. Bxf5 {[%clk 0:01:57]}  gxf5 {[%clk 0:01:57]} 16. Qf3 {[%clk 0:01:51]}  Ba6 {[%clk 0:01:55]} 17. Nh3 {[%clk 0:01:48]}  Kb7 {[%clk 0:01:44]} 18. Nf4 {[%clk 0:01:36]}  Na7 {[%clk 0:01:43]} 19. Nxh5 {[%clk 0:01:34]}  Nb5 {[%clk 0:01:42]} 20. Nf6 {[%clk 0:01:30]}  Qc6 {[%clk 0:01:42]} 21. Nxb5 {[%clk 0:01:29]}  Qxb5 {[%clk 0:01:40]} 22. h5 {[%clk 0:01:25]}  c5 {[%clk 0:01:38]} 23. h6 {[%clk 0:01:04]}  c4 {[%clk 0:01:36]} 24. c3 {[%clk 0:01:00]}  Qb3 {[%clk 0:01:36]} 25. Qe2 {[%clk 0:01:00]}  Qa2 {[%clk 0:01:34]} 26. Qc2 {[%clk 0:00:59]}  Bb5 {[%clk 0:01:33]} 27. h7 {[%clk 0:00:44]}  Be7 {[%clk 0:01:19]} 28. Bg5 {[%clk 0:00:41]}  Ka6 {[%clk 0:01:09]} 29. Rh5 {[%clk 0:00:40]}  Ka7 {[%clk 0:01:00]} 30. Ne4 {[%clk 0:00:31]}  Bxg5+ {[%clk 0:00:55]} 31. Nxg5 {[%clk 0:00:31]}  Rdf8 {[%clk 0:00:55]} 32. Rh6 {[%clk 0:00:28]}  Be8 {[%clk 0:00:52]} 33. Rdh1 {[%clk 0:00:25]}  Ka6 {[%clk 0:00:52]} 34. Rf6 {[%clk 0:00:24]}  Ba4 {[%clk 0:00:47]} 35. Qb1 {[%clk 0:00:18]}  Qb3 {[%clk 0:00:48]} 36. Nxe6 {[%clk 0:00:17]}  fxe6 {[%clk 0:00:48]} 37. Rxf8 {[%clk 0:00:17]}  Rxf8 {[%clk 0:00:49]} 38. h8=Q {[%clk 0:00:17]}  Rxh8 {[%clk 0:00:49]} 39. Re1 {[%clk 0:00:16]}  Rh2 {[%clk 0:00:49]} 40. Rg1 {[%clk 0:00:16]}  Rxg2 {[%clk 0:00:49]} 41. Re1 {[%clk 0:00:16]}  Rxf2 {[%clk 0:00:49]} 0-1


[Site "https://www.chess.com"]

[Event "Titled Tuesday Blitz July 25 Early 2023"]
[White "Eynullayev, Atilla"]
[Black "Zaksaite, Salomeja"]
[WhiteFideId "13413570"]
[BlackFideId "12801496"]
[WhiteElo "2527"]
[BlackElo "2288"]
[Result "1-0"]
[Round "3"]
[TimeControl "180+2"]
[Date "2023.07.25"]
[WhiteClock "0:01:39"]
[BlackClock "0:00:03"]
[Board "156"]

1. d4 {[%clk 0:03:00]}  Nf6 {[%clk 0:02:58]} 2. c4 {[%clk 0:02:48]}  g6 {[%clk 0:02:58]} 3. Nc3 {[%clk 0:02:48]}  Bg7 {[%clk 0:02:57]} 4. e4 {[%clk 0:02:48]}  d6 {[%clk 0:02:57]} 5. Be2 {[%clk 0:02:48]}  O-O {[%clk 0:02:55]} 6. Be3 {[%clk 0:02:49]}  c5 {[%clk 0:02:53]} 7. d5 {[%clk 0:02:49]}  e6 {[%clk 0:02:54]} 8. Nf3 {[%clk 0:02:49]}  exd5 {[%clk 0:02:53]} 9. cxd5 {[%clk 0:02:50]}  Re8 {[%clk 0:02:47]} 10. Nd2 {[%clk 0:02:50]}  a6 {[%clk 0:02:33]} 11. a4 {[%clk 0:02:49]}  Nbd7 {[%clk 0:02:30]} 12. O-O {[%clk 0:02:50]}  Ne5 {[%clk 0:02:25]} 13. h3 {[%clk 0:02:49]}  Rb8 {[%clk 0:02:22]} 14. Qc2 {[%clk 0:02:42]}  b5 {[%clk 0:02:06]} 15. axb5 {[%clk 0:02:42]}  axb5 {[%clk 0:02:07]} 16. Bxb5 {[%clk 0:02:42]}  Bd7 {[%clk 0:02:07]} 17. Bxd7 {[%clk 0:02:40]}  Qxd7 {[%clk 0:02:07]} 18. f4 {[%clk 0:02:38]}  Bh6 {[%clk 0:02:00]} 19. Rae1 {[%clk 0:02:35]}  Neg4 {[%clk 0:01:23]} 20. hxg4 {[%clk 0:02:34]}  Nxg4 {[%clk 0:01:23]} 21. Nc4 {[%clk 0:02:35]}  Rb4 {[%clk 0:01:21]} 22. b3 {[%clk 0:02:35]}  Qe7 {[%clk 0:01:14]} 23. e5 {[%clk 0:02:29]}  Qh4 {[%clk 0:01:12]} 24. g3 {[%clk 0:02:26]}  Qxg3+ {[%clk 0:01:01]} 25. Qg2 {[%clk 0:02:26]}  Qxg2+ {[%clk 0:00:59]} 26. Kxg2 {[%clk 0:02:26]}  dxe5 {[%clk 0:00:29]} 27. Bd2 {[%clk 0:02:18]}  Rxb3 {[%clk 0:00:23]} 28. d6 {[%clk 0:02:16]}  Rb4 {[%clk 0:00:05]} 29. Nxe5 {[%clk 0:01:39]}  Nxe5 {[%clk 0:00:03]} 30. Nd5 {[%clk 0:01:39]} 1-0


[Site "https://www.chess.com"]

[Event "Titled Tuesday Blitz July 25 Early 2023"]
[White "Makkar, Rajat"]
[Black "Balint, Vilmos"]
[WhiteFideId "36016810"]
[BlackFideId "718050"]
[WhiteElo "2516"]
[BlackElo "2269"]
[Result "1-0"]
[Round "3"]
[TimeControl "180+2"]
[Date "2023.07.25"]
[WhiteClock "0:00:49"]
[BlackClock "0:00:41"]
[Board "159"]

1. d4 {[%clk 0:03:00]}  Nf6 {[%clk 0:02:16]} 2. c4 {[%clk 0:03:01]}  e6 {[%clk 0:02:16]} 3. Nf3 {[%clk 0:03:00]}  Bb4+ {[%clk 0:02:16]} 4. Bd2 {[%clk 0:03:01]}  c5 {[%clk 0:02:16]} 5. Bxb4 {[%clk 0:02:55]}  cxb4 {[%clk 0:02:17]} 6. a3 {[%clk 0:02:56]}  bxa3 {[%clk 0:02:16]} 7. Rxa3 {[%clk 0:02:57]}  O-O {[%clk 0:02:17]} 8. Nc3 {[%clk 0:02:58]}  d6 {[%clk 0:02:17]} 9. e4 {[%clk 0:02:57]}  Qe7 {[%clk 0:02:17]} 10. Bd3 {[%clk 0:02:57]}  e5 {[%clk 0:02:18]} 11. O-O {[%clk 0:02:48]}  Nbd7 {[%clk 0:02:16]} 12. b4 {[%clk 0:02:40]}  b6 {[%clk 0:02:05]} 13. Re1 {[%clk 0:02:34]}  Bb7 {[%clk 0:02:02]} 14. Nd5 {[%clk 0:02:30]}  Bxd5 {[%clk 0:02:02]} 15. exd5 {[%clk 0:02:30]}  Rfe8 {[%clk 0:02:01]} 16. dxe5 {[%clk 0:02:23]}  Nxe5 {[%clk 0:02:01]} 17. Nxe5 {[%clk 0:02:19]}  dxe5 {[%clk 0:02:02]} 18. d6 {[%clk 0:02:20]}  Qb7 {[%clk 0:01:58]} 19. c5 {[%clk 0:02:19]}  bxc5 {[%clk 0:01:57]} 20. bxc5 {[%clk 0:02:19]}  Qb4 {[%clk 0:01:57]} 21. Qc1 {[%clk 0:02:10]}  Rac8 {[%clk 0:01:53]} 22. Rc3 {[%clk 0:02:03]}  Red8 {[%clk 0:01:48]} 23. Bf5 {[%clk 0:01:52]}  Rc6 {[%clk 0:01:46]} 24. Rd1 {[%clk 0:01:52]}  g6 {[%clk 0:01:43]} 25. Bb1 {[%clk 0:01:42]}  Ne8 {[%clk 0:01:17]} 26. Rc4 {[%clk 0:01:32]}  Qb5 {[%clk 0:01:18]} 27. Ba2 {[%clk 0:01:30]}  a5 {[%clk 0:01:09]} 28. h4 {[%clk 0:01:28]}  h5 {[%clk 0:01:09]} 29. Qg5 {[%clk 0:01:23]}  Rcc8 {[%clk 0:01:02]} 30. Rb4 {[%clk 0:00:49]}  Qxb4 {[%clk 0:00:44]} 31. Qxg6+ {[%clk 0:00:50]}  Kh8 {[%clk 0:00:44]} 32. Bxf7 {[%clk 0:00:49]}  Qf4 {[%clk 0:00:41]} 33. Qg8# {[%clk 0:00:49]} 1-0


[Site "https://www.chess.com"]

[Event "Titled Tuesday Blitz July 25 Early 2023"]
[White "Korelskiy, Egor"]
[Black "Thiel, Thomas"]
[WhiteFideId "34329064"]
[BlackFideId "4615964"]
[WhiteElo "2513"]
[BlackElo "2251"]
[Result "1/2-1/2"]
[Round "3"]
[TimeControl "180+2"]
[Date "2023.07.25"]
[WhiteClock "0:00:02"]
[BlackClock "0:00:22"]
[Board "162"]

1. e4 {[%clk 0:03:00]}  d5 {[%clk 0:02:58]} 2. exd5 {[%clk 0:02:59]}  Nf6 {[%clk 0:02:57]} 3. d4 {[%clk 0:02:57]}  Nxd5 {[%clk 0:02:57]} 4. Nf3 {[%clk 0:02:56]}  g6 {[%clk 0:02:57]} 5. c4 {[%clk 0:02:55]}  Nb6 {[%clk 0:02:56]} 6. Nc3 {[%clk 0:02:55]}  Bg7 {[%clk 0:02:55]} 7. h3 {[%clk 0:02:55]}  O-O {[%clk 0:02:53]} 8. Be3 {[%clk 0:02:54]}  Nc6 {[%clk 0:02:52]} 9. Be2 {[%clk 0:02:50]}  Re8 {[%clk 0:02:52]} 10. O-O {[%clk 0:02:49]}  e5 {[%clk 0:02:51]} 11. d5 {[%clk 0:02:47]}  Ne7 {[%clk 0:02:50]} 12. a4 {[%clk 0:02:39]}  Nf5 {[%clk 0:02:48]} 13. Bg5 {[%clk 0:02:15]}  f6 {[%clk 0:02:46]} 14. Bd2 {[%clk 0:02:15]}  a5 {[%clk 0:02:43]} 15. Qb3 {[%clk 0:02:06]}  Nd7 {[%clk 0:02:39]} 16. Ne4 {[%clk 0:02:03]}  Nd6 {[%clk 0:02:35]} 17. Nc3 {[%clk 0:01:43]}  Nc5 {[%clk 0:02:33]} 18. Qc2 {[%clk 0:01:41]}  Bf5 {[%clk 0:02:29]} 19. Qd1 {[%clk 0:01:40]}  b6 {[%clk 0:02:20]} 20. Be3 {[%clk 0:01:38]}  Nce4 {[%clk 0:02:18]} 21. Nxe4 {[%clk 0:01:36]}  Bxe4 {[%clk 0:02:19]} 22. Nd2 {[%clk 0:01:34]}  Bf5 {[%clk 0:02:18]} 23. c5 {[%clk 0:01:29]}  bxc5 {[%clk 0:02:15]} 24. Bxc5 {[%clk 0:01:29]}  Bf8 {[%clk 0:02:12]} 25. Rc1 {[%clk 0:01:24]}  Rb8 {[%clk 0:02:06]} 26. b3 {[%clk 0:01:23]}  Qc8 {[%clk 0:01:50]} 27. Bxd6 {[%clk 0:01:02]}  Bxd6 {[%clk 0:01:51]} 28. Nc4 {[%clk 0:01:02]}  Qa6 {[%clk 0:01:36]} 29. Nxe5 {[%clk 0:00:49]}  Qb6 {[%clk 0:01:29]} 30. Nc6 {[%clk 0:00:48]}  Rbc8 {[%clk 0:01:20]} 31. Bb5 {[%clk 0:00:44]}  Rf8 {[%clk 0:01:11]} 32. Nd4 {[%clk 0:00:20]}  Be4 {[%clk 0:00:50]} 33. Ne6 {[%clk 0:00:18]}  Rf7 {[%clk 0:00:49]} 34. Re1 {[%clk 0:00:17]}  f5 {[%clk 0:00:49]} 35. Ng5 {[%clk 0:00:13]}  Re7 {[%clk 0:00:49]} 36. Nxe4 {[%clk 0:00:11]}  Rxe4 {[%clk 0:00:48]} 37. Rxe4 {[%clk 0:00:10]}  fxe4 {[%clk 0:00:48]} 38. Qg4 {[%clk 0:00:11]}  Rf8 {[%clk 0:00:45]} 39. Qe6+ {[%clk 0:00:09]}  Kg7 {[%clk 0:00:43]} 40. Rf1 {[%clk 0:00:07]}  e3 {[%clk 0:00:40]} 41. Qxe3 {[%clk 0:00:05]}  Qxe3 {[%clk 0:00:38]} 42. fxe3 {[%clk 0:00:06]}  Rxf1+ {[%clk 0:00:38]} 43. Kxf1 {[%clk 0:00:06]}  Kf6 {[%clk 0:00:36]} 44. Ke2 {[%clk 0:00:07]}  Ke5 {[%clk 0:00:36]} 45. Bc4 {[%clk 0:00:05]}  Bb4 {[%clk 0:00:35]} 46. Kd3 {[%clk 0:00:01]}  h5 {[%clk 0:00:32]} 47. e4 {[%clk 0:00:02]}  g5 {[%clk 0:00:31]} 48. Bb5 {[%clk 0:00:02]}  h4 {[%clk 0:00:30]} 49. Be8 {[%clk 0:00:02]}  Be1 {[%clk 0:00:27]} 50. Bh5 {[%clk 0:00:02]}  Bb4 {[%clk 0:00:27]} 51. Bf3 {[%clk 0:00:02]}  Be1 {[%clk 0:00:27]} 52. Kc4 {[%clk 0:00:03]}  Bb4 {[%clk 0:00:27]} 53. Kb5 {[%clk 0:00:03]}  Kd6 {[%clk 0:00:23]} 54. Kc4 {[%clk 0:00:01]}  Ke5 {[%clk 0:00:22]} 55. Kb5 {[%clk 0:00:02]}  Kd6 {[%clk 0:00:22]} 56. Kc4 {[%clk 0:00:02]}  Ke5 {[%clk 0:00:22]} 1/2-1/2


[Site "https://www.chess.com"]

[Event "Titled Tuesday Blitz July 25 Early 2023"]
[White "Torres Hernandez, Leslie Carolin"]
[Black "Shubenkova, Veronika"]
[WhiteFideId "8400504"]
[BlackFideId "44124040"]
[WhiteElo "2256"]
[BlackElo "2513"]
[Result "1-0"]
[Round "3"]
[TimeControl "180+2"]
[Date "2023.07.25"]
[WhiteClock "0:02:02"]
[BlackClock "0:01:13"]
[Board "163"]

1. e4 {[%clk 0:03:00]}  e6 {[%clk 0:02:58]} 2. d4 {[%clk 0:03:00]}  d5 {[%clk 0:02:58]} 3. exd5 {[%clk 0:03:01]}  exd5 {[%clk 0:02:58]} 4. Nf3 {[%clk 0:03:02]}  Nf6 {[%clk 0:02:58]} 5. Bd3 {[%clk 0:03:01]}  Bd6 {[%clk 0:02:58]} 6. O-O {[%clk 0:03:00]}  O-O {[%clk 0:02:59]} 7. c3 {[%clk 0:03:00]}  Nbd7 {[%clk 0:02:59]} 8. Bg5 {[%clk 0:03:00]}  Re8 {[%clk 0:02:59]} 9. Nbd2 {[%clk 0:02:59]}  Nf8 {[%clk 0:02:59]} 10. Re1 {[%clk 0:02:58]}  Rxe1+ {[%clk 0:02:55]} 11. Qxe1 {[%clk 0:02:58]}  Ne6 {[%clk 0:02:55]} 12. Bh4 {[%clk 0:02:55]}  Nf4 {[%clk 0:02:55]} 13. Bf1 {[%clk 0:02:54]}  Bg4 {[%clk 0:02:52]} 14. Ne5 {[%clk 0:02:49]}  Bh5 {[%clk 0:02:52]} 15. Qe3 {[%clk 0:02:44]}  Ne6 {[%clk 0:02:43]} 16. Re1 {[%clk 0:02:40]}  Bg6 {[%clk 0:02:36]} 17. Bd3 {[%clk 0:02:19]}  c5 {[%clk 0:02:34]} 18. Bxg6 {[%clk 0:02:17]}  hxg6 {[%clk 0:02:32]} 19. Nxf7 {[%clk 0:02:16]}  Qd7 {[%clk 0:01:46]} 20. Nxd6 {[%clk 0:02:15]}  Nf8 {[%clk 0:01:34]} 21. dxc5 {[%clk 0:02:13]}  Qa4 {[%clk 0:01:21]} 22. Bxf6 {[%clk 0:02:12]}  gxf6 {[%clk 0:01:21]} 23. Qe7 {[%clk 0:02:09]}  Qc2 {[%clk 0:01:18]} 24. Qf7+ {[%clk 0:02:07]}  Kh8 {[%clk 0:01:18]} 25. Qxf6+ {[%clk 0:02:07]}  Kh7 {[%clk 0:01:17]} 26. Nf3 {[%clk 0:02:04]}  Qxb2 {[%clk 0:01:13]} 27. Re7+ {[%clk 0:02:02]} 1-0


[Site "https://www.chess.com"]